fUST/lending_fUST_20240904
["ID","MTS","AMOUNT","RATE_DAILY","PERIOD"]
[337089799,1725420665392,-576.63,0.00028219,2]
[337089800,1725420665402,-901.7,0.00028219,2]
[337089801,1725420665411,-500.0,0.00028219,2]
[337089802,1725420665421,-1751.72,0.00028219,2]
[337089803,1725420665430,-500.0,0.00028219,2]
[337089804,1725420665444,-500.0,0.00028219,2]
[337089805,1725420665454,-500.0,0.00028219,2]
[337089806,1725420665466,-1256.59,0.00028219,2]
[337089807,1725420665476,-500.0,0.00028219,2]
[337089808,1725420665486,-500.0,0.00028219,2]
[337089809,1725420665495,-500.0,0.00028219,2]
[337089810,1725420665507,-1139.08,0.00028219,2]
[337089811,1725420665516,-1745.83,0.00028219,2]
[337089812,1725420665526,-500.0,0.00028219,2]
[337089813,1725420665536,-500.0,0.00028219,2]
[337089814,1725420665545,-500.0,0.00028219,2]
[337089815,1725420665557,-1000.0,0.00028221,5]
[337089816,1725420665566,-1000.0,0.00028221,2]
[337089817,1725420665577,-501.19501518,0.00028221,2]
[337089818,1725420665587,-600.0,0.00028224,2]
[337089819,1725420665598,-766.42735897,0.00028315,2]
[337089820,1725420665608,-500.0,0.00028493,2]
[337089821,1725420665618,-500.0,0.00028493,2]
[337089822,1725420665628,-500.0,0.00028493,2]
[337089823,1725420665639,-616.8103497,0.00028493,2]
[337089824,1725420665650,-520.78716025,0.00028493,2]
[337089825,1725420665660,-500.0,0.00028493,2]
[337089826,1725420665670,-500.0,0.00028493,2]
[337089827,1725420665680,-500.0,0.00028493,2]
[337089828,1725420665692,-507.61317608,0.00028493,2]
[337089829,1725420665702,-500.0,0.00028493,2]
[337089830,1725420665712,-409.30225056,0.00028493,2]
[337089831,1725420665723,-500.0,0.00028493,2]
[337089832,1725420665734,-500.0,0.00028493,2]
[337089833,1725420665745,-500.0,0.00028493,2]
[337089834,1725420665757,-500.0,0.00028493,2]
[337089835,1725420665766,-515.79981546,0.00028493,2]
[337089836,1725420665777,-500.0,0.00028493,2]
[337089837,1725420665786,-500.0,0.00028493,2]
[337089838,1725420665796,-500.0,0.00028493,2]
[337089839,1725420665807,-500.0,0.00028493,2]
[337089840,1725420665817,-500.0,0.00028493,2]
[337089841,1725420665829,-500.0,0.00028493,2]
[337089842,1725420665838,-500.0,0.00028493,2]
[337089843,1725420665850,-500.0,0.00028493,2]
[337089844,1725420665860,-500.0,0.00028493,2]
[337089845,1725420665872,-500.0,0.00028493,2]
[337089846,1725420665883,-500.0,0.00028493,2]
[337089847,1725420665893,-768.18,0.00028493,2]
[337089848,1725420665903,-500.0,0.00028493,2]
[337089849,1725420665914,-500.0,0.00028493,2]
[337089850,1725420665926,-521.83779695,0.00028493,2]
[337089851,1725420665935,-500.0,0.00028493,2]
[337089852,1725420665946,-500.0,0.00028493,2]
[337089853,1725420665957,-500.0,0.00028493,2]
[337089854,1725420665967,-500.0,0.00028493,2]
[337089855,1725420665978,-500.0,0.00028493,2]
[337089856,1725420665988,-500.0,0.00028493,2]
[337089857,1725420666000,-500.0,0.00028493,2]
[337089858,1725420666011,-500.0,0.00028493,2]
[337089859,1725420666021,-500.0,0.00028493,2]
[337089860,1725420666032,-505.48264894,0.00028493,2]
[337089861,1725420666042,-609.18126247,0.00028493,2]
[337089862,1725420666053,-500.0,0.00028493,2]
[337089863,1725420666064,-500.0,0.00028493,2]
[337089864,1725420666075,-500.0,0.00028493,2]
[337089865,1725420666084,-500.0,0.00028493,2]
[337089866,1725420666094,-1082.29,0.00028493,2]
[337089867,1725420666106,-500.0,0.00028493,2]
[337089868,1725420666116,-686.25,0.00028493,2]
[337089869,1725420666125,-680.2,0.00028493,2]
[337089870,1725420666136,-500.0,0.00028493,2]
[337089871,1725420666145,-224.55830083,0.00028493,2]
[337089872,1725420666155,-500.0,0.00028493,2]
[337089873,1725420666165,-500.0,0.00028493,2]
[337089874,1725420666175,-1000.0,0.00028493,60]
[337089875,1725420666186,-500.0,0.00028493,2]
[337089876,1725420666195,-592.32,0.00028493,2]
[337089877,1725420666205,-200.0,0.00028493,2]
[337089878,1725420666215,-500.0,0.00028493,2]
[337089879,1725420666225,-500.0,0.00028493,2]
[337089880,1725420666234,-235.87012557,0.00028493,2]
[337089881,1725420666244,-500.0,0.00028493,2]
[337089882,1725420666256,-674.32,0.00028493,2]
[337089883,1725420666265,-4019.26,0.00028493,2]
[337089884,1725420666274,-510.49179208,0.00028493,2]
[337089885,1725420666283,-675.84,0.00028493,2]
[337089886,1725420666292,-500.0,0.00028493,2]
[337089887,1725420666301,-500.0,0.00028493,2]
[337089888,1725420666310,-331.99350419,0.00028493,2]
[337089889,1725420666319,-500.0,0.00028493,2]
[337089890,1725420666336,-500.0,0.00028493,2]
[337089891,1725420666348,-754.15,0.00028493,2]
[337089892,1725420666358,-555.64730621,0.00028493,2]
[337089893,1725420666368,-500.0,0.00028493,2]
[337089894,1725420666378,-609.64,0.00028493,2]
[337089895,1725420666393,-295.89332009,0.00028493,2]
[337089896,1725420666403,-500.0,0.00028493,2]
[337089897,1725420666412,-654.89,0.00028493,2]
[337089898,1725420666422,-500.0,0.00028493,2]
[337089899,1725420666431,-500.0,0.00028493,2]
[337089900,1725420666440,-500.0,0.00028493,2]
[337089901,1725420666451,-511.88,0.00028493,2]
[337089902,1725420666462,-500.0,0.00028493,2]
[337089903,1725420666474,-500.0,0.00028493,2]
[337089904,1725420666485,-500.0,0.00028493,2]
[337089905,1725420666495,-500.0,0.00028493,2]
[337089906,1725420666508,-500.0,0.00028493,2]
[337089907,1725420666518,-500.0,0.00028493,2]
[337089908,1725420666529,-500.0,0.00028493,2]
[337089909,1725420666540,-500.0,0.00028493,2]
[337089910,1725420666550,-500.0,0.00028493,2]
[337089911,1725420666560,-500.0,0.00028493,2]
[337089912,1725420666570,-500.0,0.00028493,2]
[337089913,1725420666580,-731.93,0.00028493,2]
[337089914,1725420666589,-500.0,0.00028493,2]
[337089915,1725420666599,-245.41268979,0.00028493,2]
[337089916,1725420666609,-415.29586904,0.00028493,2]
[337089917,1725420666618,-555.67,0.00028493,2]
[337089918,1725420666628,-534.31,0.00028493,2]
[337089919,1725420666637,-2911.16,0.00028493,2]
[337089920,1725420666647,-500.0,0.00028493,2]
[337089921,1725420666658,-500.0,0.00028493,2]
[337089922,1725420666765,-500.0,0.00028493,2]
[337089923,1725420666775,-500.0,0.00028493,2]
[337089924,1725420666784,-500.0,0.00028493,2]
[337089925,1725420666793,-500.0,0.00028493,2]
[337089926,1725420666803,-500.0,0.00028493,2]
[337089927,1725420666812,-500.0,0.00028493,2]
[337089928,1725420666822,-500.0,0.00028493,2]
[337089929,1725420666831,-500.0,0.00028493,2]
[337089930,1725420666840,-500.0,0.00028493,2]
[337089931,1725420666849,-453.37532712,0.00028493,2]
[337089932,1725420666859,-500.0,0.00028493,2]
[337089933,1725420666869,-1427.1,0.00028493,2]
[337089934,1725420666879,-500.0,0.00028493,2]
[337089935,1725420666888,-500.0,0.00028493,2]
[337089936,1725420666898,-510.09418499,0.00028493,2]
[337089937,1725420666907,-500.0,0.00028493,2]
[337089938,1725420666917,-500.0,0.00028493,2]
[337089939,1725420666927,-500.0,0.00028493,2]
[337089940,1725420666936,-881.16,0.00028493,2]
[337089941,1725420666945,-500.0,0.00028493,2]
[337089942,1725420666954,-500.0,0.00028493,2]
[337089943,1725420666963,-706.4,0.00028493,2]
[337089944,1725420666973,-524.63,0.00028493,2]
[337089945,1725420666983,-500.0,0.00028493,2]
[337089946,1725420666992,-500.0,0.00028493,2]
[337089947,1725420667001,-500.0,0.00028493,2]
[337089948,1725420667011,-500.0,0.00028493,2]
[337089949,1725420667021,-500.0,0.00028493,2]
[337089950,1725420667031,-500.0,0.00028493,2]
[337089951,1725420667041,-500.0,0.00028493,2]
[337089952,1725420667051,-500.0,0.00028493,2]
[337089953,1725420667062,-500.0,0.00028493,2]
[337089954,1725420667073,-500.0,0.00028493,2]
[337089955,1725420667083,-2009.2,0.00028493,2]
[337089956,1725420667093,-695.98,0.00028493,2]
[337089957,1725420667102,-500.0,0.00028493,2]
[337089958,1725420667111,-500.0,0.00028493,2]
[337089959,1725420667121,-500.0,0.00028493,2]
[337089960,1725420667130,-896.76,0.00028493,2]
[337089961,1725420667141,-500.0,0.00028493,2]
[337089962,1725420667151,-500.0,0.00028493,2]
[337089963,1725420667161,-1155.59,0.00028493,2]
[337089964,1725420667171,-500.0,0.00028493,2]
[337089965,1725420667180,-500.0,0.00028493,2]
[337089966,1725420667190,-500.0,0.00028493,2]
[337089967,1725420667199,-592.51,0.00028493,2]
[337089968,1725420667208,-500.0,0.00028493,2]
[337089969,1725420667218,-791.9,0.00028493,2]
[337089970,1725420667228,-547.68,0.00028493,2]
[337089971,1725420667237,-500.0,0.00028493,2]
[337089972,1725420667247,-500.0,0.00028493,2]
[337089973,1725420667265,-500.0,0.00028493,2]
[337089974,1725420667274,-500.0,0.00028493,2]
[337089975,1725420667285,-508.62183139,0.00028493,2]
[337089976,1725420667297,-500.0,0.00028493,2]
[337089977,1725420667307,-500.0,0.00028493,2]
[337089978,1725420667318,-500.0,0.00028493,2]
[337089979,1725420667327,-500.0,0.00028493,2]
[337089980,1725420667337,-512.34695042,0.00028493,2]
[337089981,1725420667350,-500.0,0.00028493,2]
[337089982,1725420667360,-500.0,0.00028493,2]
[337089983,1725420667371,-500.0,0.00028493,2]
[337089984,1725420667384,-642.42,0.00028493,2]
[337089985,1725420667393,-500.0,0.00028493,2]
[337089986,1725420667402,-159.06090138,0.00028493,2]
[337089987,1725420667412,-1249.32,0.00028493,2]
[337089988,1725420667424,-301.22269587,0.00028493,2]
[337089989,1725420667435,-574.33310142,0.00028493,2]
[337089990,1725420667445,-500.0,0.00028493,2]
[337089991,1725420667455,-537.32368306,0.00028493,2]
[337089992,1725420667468,-500.0,0.00028493,2]
[337089993,1725420667479,-500.0,0.00028493,2]
[337089994,1725420667489,-500.0,0.00028493,2]
[337089995,1725420667501,-500.0,0.00028493,2]
[337089996,1725420667512,-500.0,0.00028493,2]
[337089997,1725420667523,-2356.93,0.00028493,2]
[337089998,1725420667533,-500.0,0.00028493,2]
[337089999,1725420667542,-500.0,0.00028493,2]
[337090000,1725420667552,-500.0,0.00028493,2]
[337090001,1725420667562,-500.0,0.00028493,2]
[337090002,1725420667571,-500.0,0.00028493,2]
[337090003,1725420667581,-500.0,0.00028493,2]
[337090004,1725420667591,-834.19,0.00028493,2]
[337090005,1725420667602,-500.0,0.00028493,2]
[337090006,1725420667612,-500.0,0.00028493,2]
[337090007,1725420667623,-500.0,0.00028493,2]
[337090008,1725420667633,-500.0,0.00028493,2]
[337090009,1725420667642,-500.0,0.00028493,2]
[337090010,1725420667653,-500.0,0.00028493,2]
[337090011,1725420667663,-500.0,0.00028493,2]
[337090012,1725420667672,-500.0,0.00028493,2]
[337090013,1725420667682,-958.5,0.00028493,2]
[337090014,1725420667692,-832.71,0.00028493,2]
[337090015,1725420667701,-500.0,0.00028493,2]
[337090016,1725420667711,-500.0,0.00028493,2]
[337090017,1725420667720,-500.0,0.00028493,2]
[337090018,1725420667731,-652.3,0.00028493,2]
[337090019,1725420667741,-500.0,0.00028493,2]
[337090020,1725420667751,-901.33,0.00028493,2]
[337090021,1725420667760,-500.0,0.00028493,2]
[337090022,1725420667770,-500.0,0.00028493,2]
[337090023,1725420667780,-1011.35,0.00028493,2]
[337090024,1725420667790,-2862.9,0.00028493,2]
[337090025,1725420667799,-2987.56,0.00028493,2]
[337090026,1725420667809,-500.0,0.00028493,2]
[337090027,1725420667818,-500.0,0.00028493,2]
[337090028,1725420667827,-3402.81,0.00028493,2]
[337090029,1725420667837,-562.95534938,0.00028493,2]
[337090030,1725420667846,-1811.33,0.00028493,2]
[337090031,1725420667856,-500.0,0.00028493,2]
[337090032,1725420667866,-500.0,0.00028493,2]
[337090033,1725420667876,-612.22,0.00028493,2]
[337090034,1725420667886,-1243.1,0.00028493,2]
[337090035,1725420667896,-717.23,0.00028493,2]
[337090036,1725420667906,-4418.31,0.00028493,2]
[337090037,1725420667915,-500.0,0.00028493,2]
[337090038,1725420667924,-115684.14,0.00028493,2]
[337090039,1725420667934,-55826.22,0.00028493,2]
[337090040,1725420668010,-500.0,0.00028493,2]
[337090041,1725420668019,-500.0,0.00028493,2]
[337090042,1725420668029,-500.0,0.00028493,2]
[337090043,1725420668038,-500.0,0.00028493,2]
[337090044,1725420668047,-500.0,0.00028493,2]
[337090045,1725420668057,-500.0,0.00028493,2]
[337090046,1725420668067,-500.0,0.00028493,2]
[337090047,1725420668076,-6301.07,0.00028493,2]
[337090048,1725420668086,-26324.52,0.00028493,2]
[337090049,1725420668095,-636.47,0.00028493,2]
[337090050,1725420668104,-500.0,0.00028493,2]
[337090051,1725420668114,-1916.51,0.00028493,2]
[337090052,1725420668123,-500.0,0.00028493,2]
[337090053,1725420668132,-500.0,0.00028493,2]
[337090054,1725420668142,-823.36,0.00028493,2]
[337090055,1725420668151,-617.81,0.00028493,2]
[337090056,1725420668160,-1701.17,0.00028493,2]
[337090057,1725420668170,-729.84,0.00028493,2]
[337090058,1725420668179,-500.0,0.00028493,2]
[337090059,1725420668189,-500.0,0.00028493,2]
[337090060,1725420668199,-643.69145545,0.00028493,2]
[337090061,1725420668210,-500.0,0.00028493,2]
[337090062,1725420668220,-712.75,0.00028493,2]
[337090063,1725420668230,-500.0,0.00028493,2]
[337090064,1725420668242,-500.0,0.00028493,2]
[337090065,1725420668254,-500.0,0.00028493,2]
[337090066,1725420668265,-500.0,0.00028493,2]
[337090067,1725420668275,-1160.46,0.00028493,2]
[337090068,1725420668285,-1329.1,0.00028493,2]
[337090069,1725420668295,-1898.01,0.00028493,2]
[337090070,1725420668306,-500.0,0.00028493,2]
[337090071,1725420668317,-2729.74,0.00028493,2]
[337090072,1725420668327,-500.0,0.00028493,2]
[337090073,1725420668337,-500.0,0.00028493,2]
[337090074,1725420668348,-500.0,0.00028493,2]
[337090075,1725420668357,-2159.38,0.00028493,2]
[337090076,1725420668368,-1592.01,0.00028493,2]
[337090077,1725420668383,-500.0,0.00028493,2]
[337090078,1725420668395,-6188.78,0.00028493,2]
[337090079,1725420668405,-500.0,0.00028493,2]
[337090080,1725420668416,-4210.31,0.00028493,2]
[337090081,1725420668428,-1529.25,0.00028493,2]
[337090082,1725420668437,-729.82,0.00028493,2]
[337090083,1725420668447,-10461.88,0.00028493,2]
[337090084,1725420668457,-500.0,0.00028493,2]
[337090085,1725420668469,-1280.26,0.00028493,2]
[337090086,1725420668479,-1560.58,0.00028493,2]
[337090087,1725420668490,-7136.97,0.00028493,2]
[337090088,1725420668501,-500.0,0.00028493,2]
[337090089,1725420668510,-500.0,0.00028493,2]
[337090090,1725420668519,-500.0,0.00028493,2]
[337090091,1725420668530,-500.0,0.00028493,2]
[337090092,1725420668539,-500.0,0.00028493,2]
[337090093,1725420668550,-1328.68,0.00028493,2]
[337090094,1725420668560,-929.51,0.00028493,2]
[337090095,1725420668582,-3077.96,0.00028493,2]
[337090096,1725420668598,-683.0,0.00028493,2]
[337090097,1725420668618,-500.0,0.00028493,2]
[337090098,1725420668637,-11939.04,0.00028493,2]
[337090099,1725420668657,-500.0,0.00028493,2]
[337090100,1725420668677,-559.77745254,0.00028493,2]
[337090101,1725420668695,-1182.99,0.00028493,2]
[337090102,1725420668712,-1259.14,0.00028493,2]
[337090103,1725420668730,-500.0,0.00028493,2]
[337090104,1725420668752,-13600.34,0.00028493,2]
[337090105,1725420668768,-500.0,0.00028493,2]
[337090106,1725420668783,-1155.31,0.00028493,2]
[337090107,1725420668802,-500.0,0.00028493,2]
[337090108,1725420668820,-851.0,0.00028493,2]
[337090109,1725420668837,-500.0,0.00028493,2]
[337090110,1725420668850,-1763.89,0.00028493,2]
[337090111,1725420668866,-756.04,0.00028493,2]
[337090112,1725420668882,-500.0,0.00028493,2]
[337090113,1725420668898,-652.71,0.00028493,2]
[337090114,1725420668915,-647.88,0.00028493,2]
[337090115,1725420668931,-500.0,0.00028493,2]
[337090116,1725420668945,-4853.04,0.00028493,2]
[337090117,1725420668962,-963.22,0.00028493,2]
[337090118,1725420668977,-500.0,0.00028493,2]
[337090119,1725420668994,-1079.72,0.00028493,2]
[337090120,1725420669011,-500.0,0.00028493,2]
[337090121,1725420669026,-500.0,0.00028493,2]
[337090122,1725420669041,-500.0,0.00028493,2]
[337090123,1725420669058,-500.0,0.00028493,2]
[337090124,1725420669072,-500.0,0.00028493,2]
[337090125,1725420669087,-803.37,0.00028493,2]
[337090126,1725420669101,-500.0,0.00028493,2]
[337090127,1725420669115,-500.0,0.00028493,2]
[337090128,1725420669129,-500.0,0.00028493,2]
[337090129,1725420669143,-500.0,0.00028493,2]
[337090130,1725420669157,-606.86,0.00028493,2]
[337090131,1725420669173,-500.0,0.00028493,2]
[337090132,1725420669189,-500.0,0.00028493,2]
[337090133,1725420669205,-500.0,0.00028493,2]
[337090134,1725420669221,-500.0,0.00028493,2]
[337090135,1725420669236,-170.29605076,0.00028493,2]
[337090136,1725420669253,-1132.32,0.00028493,2]
[337090137,1725420669269,-500.0,0.00028493,2]
[337090138,1725420669285,-636.94,0.00028493,2]
[337090139,1725420669301,-500.0,0.00028493,2]
[337090140,1725420669317,-500.0,0.00028493,2]
[337090141,1725420669333,-5252.83,0.00028493,2]
[337090142,1725420669348,-500.0,0.00028493,2]
[337090143,1725420669364,-576.63,0.00028493,2]
[337090144,1725420669379,-901.7,0.00028493,2]
[337090145,1725420669396,-500.0,0.00028493,2]
[337090146,1725420669411,-1751.72,0.00028493,2]
[337090147,1725420669427,-500.0,0.00028493,2]
[337090148,1725420669444,-500.0,0.00028493,2]
[337090149,1725420669458,-500.0,0.00028493,2]
[337090150,1725420669566,-1256.59,0.00028493,2]
[337090151,1725420669577,-500.0,0.00028493,2]
[337090152,1725420669586,-500.0,0.00028493,2]
[337090153,1725420669596,-500.0,0.00028493,2]
[337090154,1725420669607,-1139.08,0.00028493,2]
[337090155,1725420669618,-1745.83,0.00028493,2]
[337090156,1725420669629,-500.0,0.00028493,2]
[337090157,1725420669640,-500.0,0.00028493,2]
[337090158,1725420669651,-1000.0,0.000285,2]
[337090159,1725420669662,-608.61594843,0.00028512,2]
[337090160,1725420669674,-6000.0,0.0002859,2]
[337090161,1725420669685,-1664.813552,0.00028657,2]
[337090162,1725420669695,-500.0,0.0002873,5]
[337090163,1725420669707,-160.0,0.00028734,8]
[337090164,1725420669717,-312.64513809,0.00028734,5]
[337090165,1725420669729,-500.0,0.00028761,10]
[337090166,1725420669740,-500.0,0.00028762,10]
[337090167,1725420669752,-500.0,0.00028767,2]
[337090168,1725420669763,-500.0,0.00028767,2]
[337090169,1725420669774,-500.0,0.00028767,2]
[337090170,1725420669784,-500.0,0.00028767,2]
[337090171,1725420669798,-500.0,0.00028767,2]
[337090172,1725420669809,-500.0,0.00028767,2]
[337090173,1725420669818,-500.0,0.00028767,2]
[337090174,1725420669827,-500.0,0.00028767,2]
[337090175,1725420669836,-500.0,0.00028767,2]
[337090176,1725420669846,-500.0,0.00028767,2]
[337090177,1725420669855,-500.0,0.00028767,2]
[337090178,1725420669866,-500.0,0.00028767,2]
[337090179,1725420669878,-500.0,0.00028767,2]
[337090180,1725420669889,-500.0,0.00028767,2]
[337090181,1725420669900,-500.0,0.00028767,2]
[337090182,1725420669909,-500.0,0.00028767,2]
[337090183,1725420669922,-500.0,0.00028767,2]
[337090184,1725420669932,-500.0,0.00028767,2]
[337090185,1725420669944,-500.0,0.00028767,2]
[337090186,1725420669955,-500.0,0.00028767,2]
[337090187,1725420669966,-500.0,0.00028767,2]
[337090188,1725420669977,-500.0,0.00028767,2]
[337090189,1725420669987,-768.18,0.00028767,2]
[337090190,1725420669998,-500.0,0.00028767,2]
[337090191,1725420670010,-500.0,0.00028767,2]
[337090192,1725420670021,-500.0,0.00028767,2]
[337090193,1725420670030,-500.0,0.00028767,2]
[337090194,1725420670041,-500.0,0.00028767,2]
[337090195,1725420670050,-500.0,0.00028767,2]
[337090196,1725420670061,-500.0,0.00028767,2]
[337090197,1725420670071,-500.0,0.00028767,2]
[337090198,1725420670082,-500.0,0.00028767,2]
[337090199,1725420670092,-500.0,0.00028767,2]
[337090200,1725420670101,-500.0,0.00028767,2]
[337090201,1725420670111,-500.0,0.00028767,2]
[337090202,1725420670120,-500.0,0.00028767,2]
[337090203,1725420670130,-500.0,0.00028767,2]
[337090204,1725420670140,-1082.29,0.00028767,2]
[337090205,1725420670149,-500.0,0.00028767,2]
[337090206,1725420670159,-686.25,0.00028767,2]
[337090207,1725420670168,-680.2,0.00028767,2]
[337090208,1725420670178,-500.0,0.00028767,2]
[337090209,1725420670187,-500.0,0.00028767,2]
[337090210,1725420670198,-489.70379569,0.00028767,2]
[337090211,1725420670208,-1000.0,0.00028767,60]
[337090212,1725420670217,-500.0,0.00028767,2]
[337090213,1725420670227,-592.32,0.00028767,2]
[337090214,1725420670237,-200.0,0.00028767,2]
[337090215,1725420670246,-500.0,0.00028767,2]
[337090216,1725420670257,-500.0,0.00028767,2]
[337090217,1725420670267,-500.0,0.00028767,2]
[337090218,1725420670277,-674.32,0.00028767,2]
[337090219,1725420670286,-4019.26,0.00028767,2]
[337090220,1725420670297,-675.84,0.00028767,2]
[337090221,1725420670307,-500.0,0.00028767,2]
[337090222,1725420670317,-500.0,0.00028767,2]
[337090223,1725420670327,-500.0,0.00028767,2]
[337090224,1725420670336,-500.0,0.00028767,2]
[337090225,1725420670346,-754.15,0.00028767,2]
[337090226,1725420670355,-500.0,0.00028767,2]
[337090227,1725420670365,-609.64,0.00028767,2]
[337090228,1725420670375,-500.0,0.00028767,2]
[337090229,1725420670388,-654.89,0.00028767,2]
[337090230,1725420670398,-500.0,0.00028767,2]
[337090231,1725420670408,-514.25694419,0.00028767,2]
[337090232,1725420670418,-500.0,0.00028767,2]
[337090233,1725420670428,-511.88,0.00028767,2]
[337090234,1725420670439,-500.0,0.00028767,2]
[337090235,1725420670448,-500.0,0.00028767,2]
[337090236,1725420670459,-500.0,0.00028767,2]
[337090237,1725420670469,-500.0,0.00028767,2]
[337090238,1725420670479,-500.0,0.00028767,2]
[337090239,1725420670488,-353.75703418,0.00028767,2]
[337090240,1725420670498,-500.0,0.00028767,2]
[337090241,1725420670511,-500.0,0.00028767,2]
[337090242,1725420670522,-500.0,0.00028767,2]
[337090243,1725420670534,-500.0,0.00028767,2]
[337090244,1725420670544,-500.0,0.00028767,2]
[337090245,1725420670554,-731.93,0.00028767,2]
[337090246,1725420670565,-500.0,0.00028767,2]
[337090247,1725420670574,-555.67,0.00028767,2]
[337090248,1725420670584,-534.31,0.00028767,2]
[337090249,1725420670593,-2911.16,0.00028767,2]
[337090250,1725420670602,-500.0,0.00028767,2]
[337090251,1725420670612,-500.0,0.00028767,2]
[337090252,1725420670621,-500.0,0.00028767,2]
[337090253,1725420670631,-500.0,0.00028767,2]
[337090254,1725420670641,-500.0,0.00028767,2]
[337090255,1725420670651,-500.0,0.00028767,2]
[337090256,1725420670661,-500.0,0.00028767,2]
[337090257,1725420670671,-500.0,0.00028767,2]
[337090258,1725420670681,-500.0,0.00028767,2]
[337090259,1725420670691,-500.0,0.00028767,2]
[337090260,1725420670701,-500.0,0.00028767,2]
[337090261,1725420670711,-1427.1,0.00028767,2]
[337090262,1725420670722,-500.0,0.00028767,2]
[337090263,1725420670731,-500.0,0.00028767,2]
[337090264,1725420670741,-500.0,0.00028767,2]
[337090265,1725420670751,-500.0,0.00028767,2]
[337090266,1725420670773,-500.0,0.00028767,2]
[337090267,1725420670783,-500.0,0.00028767,2]
[337090268,1725420670792,-881.16,0.00028767,2]
[337090269,1725420670802,-500.0,0.00028767,2]
[337090270,1725420670811,-500.0,0.00028767,2]
[337090271,1725420670820,-706.4,0.00028767,2]
[337090272,1725420670832,-524.63,0.00028767,2]
[337090273,1725420670843,-500.0,0.00028767,2]
[337090274,1725420670853,-500.0,0.00028767,2]
[337090275,1725420670932,-429.52446574,0.00028767,2]
[337090276,1725420670943,-500.0,0.00028767,2]
[337090277,1725420670955,-500.0,0.00028767,2]
[337090278,1725420670966,-500.0,0.00028767,2]
[337090279,1725420670975,-500.0,0.00028767,2]
[337090280,1725420670985,-500.0,0.00028767,2]
[337090281,1725420670997,-500.0,0.00028767,2]
[337090282,1725420671008,-500.0,0.00028767,2]
[337090283,1725420671019,-2009.2,0.00028767,2]
[337090284,1725420671030,-695.98,0.00028767,2]
[337090285,1725420671040,-217.68590175,0.00028767,2]
[337090286,1725420671050,-500.0,0.00028767,2]
[337090287,1725420671061,-500.0,0.00028767,2]
[337090288,1725420671071,-896.76,0.00028767,2]
[337090289,1725420671080,-500.0,0.00028767,2]
[337090290,1725420671090,-500.0,0.00028767,2]
[337090291,1725420671100,-1155.59,0.00028767,2]
[337090292,1725420671110,-500.0,0.00028767,2]
[337090293,1725420671120,-500.0,0.00028767,2]
[337090294,1725420671129,-500.0,0.00028767,2]
[337090295,1725420671139,-592.51,0.00028767,2]
[337090296,1725420671148,-500.0,0.00028767,2]
[337090297,1725420671158,-791.9,0.00028767,2]
[337090298,1725420671167,-547.68,0.00028767,2]